Cogmind - Beta 10.2 @@@ ROGUE MODE // 2021.05.11 @ 21:33:20 Player: mat Result: Destroyed by G-73 Enforcer with Phase Gun Performance ------------- Evolutions (9) 4500 Regions Visited (13) 2600 Robots Destroyed (125) 625 Value Destroyed (6111) 6111 Prototype IDs (4) 80 Alien Tech Used (5) 1000 Bonus (4259) 4259 TOTAL SCORE: 19175 Bonus ------- High Alert Combat Kills 259 Acquired SGEMP 2000 Met Sigix 2000 Cogmind --------- Core Integrity 0/1600 Matter 230/300 Energy 100/100 System Corruption 2% Temperature Cool (0) Movement Core (50) Location -1/Access Parts ------- > --- POWER (3) -------- (None) > --- PROPULSION (6) --- (None) > --- UTILITY (10) ----- Visual Processing Unit Experimental System Shield > --- WEAPON (6) ------- (None) > --- INVENTORY (4) ---- SGEMP Prototype Sigix Containment Pod Peak State ------------ > --- POWER ------------ Micro Fission Core Micro Fission Core > --- PROPULSION ------- Improved Heavy Treads Advanced Heavy Treads > --- UTILITY ---------- Advanced Cooling System Advanced Cooling System Large Storage Unit Large Storage Unit Visual Processing Unit Advanced Signal Interpreter Improved Medium Armor Plating Improved Medium Armor Plating > --- WEAPON ----------- Electrolaser Plasma Rifle Plasma Rifle Quantum Rifle Core Cannon > --- INVENTORY -------- Light Antimatter Reactor Light Antimatter Reactor Light Antimatter Reactor Particle Reactor Advanced Heavy Treads Advanced Heavy Treads Improved Phase Shifter Phase Redirector Terrabomb Stasis Generator High-powered Shotgun Coil Gun Sigix Containment Pod [Rating: 132] Favorites ----------- Power Micro Fission Core Engine Improved Deuterium Engine Power Core Micro Fission Core Reactor Light Antimatter Reactor Propulsion Advanced Treads Treads Advanced Treads Leg Aluminum Leg Wheel Compact Wheel Hover Unit Combat Linear Gravjet Flight Unit Electron Diverter Utility Large Storage Unit Device Improved Heat Sink Storage Large Storage Unit Processor Advanced Signal Interpreter Hackware Experimental System Shield Protection Improved Medium Armor Plating Artifact Stasis Generator Weapon Assault Rifle Energy Gun Electrolaser Energy Cannon Core Cannon Ballistic Gun Assault Rifle Launcher Grenade Launcher Slashing Weapon Greatsword Build | -11 -10 -9 -9 -8 -7 -6 -5 -4 -3 -3 -2 -2 -1 ------- Run | Scr Mat Mat Min Mat Fac Fac Fac Fac Res Qua Res Tes Acc Slots Evolved 18 | . . 2 . 2 2 2 2 2 2 . 2 . 2 Power 2 | . . . . . . . 1 . . . 1 . . Propulsion 4 | . . . . . . . 1 1 . . . . 2 Utility 8 | . . . . 2 2 1 . 1 1 . 1 . . Weapon 4 | . . 2 . . . 1 . . 1 . . . . Parts Attached 137 | 5 3 6 . 8 30 25 10 10 3 27 1 4 5 Power 11 | 1 . 1 . 1 . 1 2 2 . . . 2 1 Engine 4 | 1 . 1 . . . 1 . . . . . 1 . Core 5 | . . . . 1 . . 2 2 . . . . . Reactor 2 | . . . . . . . . . . . . 1 1 Propulsion 28 | 1 1 1 . 2 5 6 3 1 . 4 1 1 2 Treads 21 | 1 1 1 . 2 2 6 3 1 . 4 . . . Leg 1 | . . . . . 1 . . . . . . . . Wheel 2 | . . . . . 2 . . . . . . . . Hover 1 | . . . . . . . . . . . . . 1 Flight 3 | . . . . . . . . . . . 1 1 1 Utility 39 | 1 2 . . 3 9 5 2 4 2 9 . . 2 Device 15 | . . . . 2 3 2 1 1 1 4 . . 1 Storage 4 | 1 2 . . . . 1 . . . . . . . Processor 2 | . . . . . 2 . . . . . . . . Hackware 1 | . . . . . . . . . . . . . 1 Protection 15 | . . . . 1 4 2 1 3 1 3 . . . Artifact 2 | . . . . . . . . . . 2 . . . Weapon 59 | 2 . 4 . 2 16 13 3 3 1 14 . 1 . Energy Gun 27 | 1 . 1 . 1 10 4 1 1 . 8 . . . Energy Cannon 2 | . . . . . . . . . . 1 . 1 . Ballistic Gun 27 | 1 . 3 . 1 6 6 2 2 1 5 . . . Ballistic Cannon . | . . . . . . . . . . . . . . Launcher 1 | . . . . . . 1 . . . . . . . Special Weapon . | . . . . . . . . . . . . . . Impact Weapon . | . . . . . . . . . . . . . . Slashing Weapon 2 | . . . . . . 2 . . . . . . . Piercing Weapon . | . . . . . . . . . . . . . . Special Melee Weapon . | . . . . . . . . . . . . . . Unidentified Prototypes 9 | . . . . . 1 . . . . 6 . 1 1 Parts Lost 68 | . . 1 . 5 21 5 . 4 . 27 . 3 2 Power 4 | . . . . 1 . . . . . 1 . 1 1 Propulsion 14 | . . . . 2 5 . . . . 4 . 2 1 Utility 13 | . . . . 1 3 . . 1 . 8 . . . Weapon 37 | . . 1 . 1 13 5 . 3 . 14 . . . Highest Loss Streak 18 | . . 1 . 3 6 3 . 2 . 18 . 3 1 Average Slot Usage (%) 86 | . 91 95 100 93 95 88 100 100 100 85 6 13 5 Engine 2 | . 14 9 11 6 . 3 5 1 . . . . . Core 5 | . . . . 2 7 2 5 8 9 8 . . . Treads 12 | . 21 20 22 13 9 12 17 21 19 12 . . . Device 10 | . . . . 7 16 13 11 10 13 11 . . . Storage 12 | . 26 22 22 18 15 13 11 10 9 8 . . . Processor 8 | . . . . . 10 13 11 10 9 8 4 4 4 Protection 5 | . . . . 7 3 6 5 10 9 7 . . . Energy Gun 9 | . 14 10 11 9 13 6 8 6 4 11 . . . Ballistic Gun 14 | . 14 31 33 27 15 6 19 18 23 13 . . . Slashing Weapon 1 | . . . . . . 5 . . . . . . . Naked Turns . | . . . . . . . . . . . . . . Heaviest Build 94 | 10 38 44 44 49 60 68 81 85 90 94 . 12 8 Greatest Support 145 | 20 40 40 40 42 42 52 82 104 104 145 11 24 27 Greatest Overweight (x) 19 | . 1 1 1 2 19 2 1 . . 1 . . 2 Average Overweight (x) . | . . 1 1 1 1 1 . . . . . . . Largest Inventory Capacity 16 | 6 16 16 16 16 16 16 16 16 16 16 4 4 4 Average Capacity 15 | 5 15 16 16 16 16 16 16 16 16 15 4 4 4 Most Carried 16 | 4 5 13 14 16 16 16 16 16 16 16 4 4 4 Average Carried 13 | 2 3 8 13 15 14 15 15 14 15 13 4 3 4 Final Capacity 16 | 6 16 16 16 16 16 16 16 16 16 4 4 4 4 Final Carried 16 | 3 5 13 14 16 16 15 16 16 16 4 4 4 4 Class Distribution -------------------- 36% | Scavenger-Tank 20% | Mutant 11% | Scavenger-Executioner 10% | Scavenger-Skirmisher 9% | Scavenger-Mutant 7% | Gunner 3% | Tank Dominant Class ---------------- Mutant | -10/Materials Gunner | -9/Materials Gunner | -9/Mines Scavenger-Tank | -8/Materials Scavenger-Skirmisher | -7/Factory Scavenger-Tank | -6/Factory Scavenger-Tank | -5/Factory Scavenger-Tank | -4/Factory Scavenger-Executioner | -3/Research Scavenger-Executioner | -3/Quarantine Scavenger-Executioner | -2/Research Mutant | -2/Testing Mutant | -1/Access Resources | -11 -10 -9 -9 -8 -7 -6 -5 -4 -3 -3 -2 -2 -1 ----------- Run | Scr Mat Mat Min Mat Fac Fac Fac Fac Res Qua Res Tes Acc Matter Collected 3485 | 189 94 256 18 215 542 413 363 696 180 498 . 21 . Remotely . | . . . . . . . . . . . . . . Salvage Created 6783 | . 136 386 37 329 1119 1156 472 1395 609 1123 . 21 . Parts 306 | . 5 31 3 19 41 63 16 51 20 56 . 1 . Haulers Intercepted 1 | . . . . . . . . 1 . . . . . Recyclers Shooed 3 | . . 1 . . . . 2 . . . . . . Parts Field Recycled . | . . . . . . . . . . . . . . Retrieved Matter . | . . . . . . . . . . . . . . Parts Self-Destructed . | . . . . . . . . . . . . . . Prevented . | . . . . . . . . . . . . . . Kills | -11 -10 -9 -9 -8 -7 -6 -5 -4 -3 -3 -2 -2 -1 ------- Run | Scr Mat Mat Min Mat Fac Fac Fac Fac Res Qua Res Tes Acc Combat Hostiles Destroyed 107 | . 3 9 3 7 23 19 6 14 7 16 . . . Melee 7 | . . . . . . 7 . . . . . . . Guns 94 | . 3 9 3 7 20 11 6 13 7 15 . . . AOE 4 | . . . . . 3 1 . . . . . . . Classes Destroyed 12 | . 1 5 . . 4 . . 2 . . . . . Worker 5 | . . 2 . . . 1 . 1 . . . 1 . Builder 2 | . . . . . 1 . . 1 . . . . . Hauler 1 | . . . . . . . . 1 . . . . . Recycler 5 | . . . . . 3 . . 1 1 . . . . Watcher 5 | . . 1 . . . 2 . . . 2 . . . Swarmer 22 | . . 3 3 . 10 6 . . . . . . . Grunt 46 | . 3 4 . 5 6 3 2 9 6 8 . . . Brawler 1 | . . . . . . . . 1 . . . . . Duelist 2 | . . 1 . . . . . 1 . . . . . Sentry 16 | . . 1 . 2 4 4 3 1 1 . . . . Hunter 11 | . . . . . 1 3 1 2 . 4 . . . Programmer 9 | . . . . . 2 3 . . . 4 . . . Best Kill Streak 8 | . 2 8 3 2 8 3 2 4 4 6 . 1 . Combat Bots Only 7 | . 2 6 3 2 7 3 2 3 3 6 . . . Max Kills in Single Turn 3 | . 1 2 2 1 2 3 1 1 1 1 . 1 . Gunslinging 2 | . . . 1 . 1 2 . . . . . . . Exploded 1 | . . . . . 1 1 . . . . . . . Melee 1 | . . . . . . 1 . . . . . . . Uniques/NPCs Destroyed . | . . . . . . . . . . . . . . Combat | -11 -10 -9 -9 -8 -7 -6 -5 -4 -3 -3 -2 -2 -1 -------- Run | Scr Mat Mat Min Mat Fac Fac Fac Fac Res Qua Res Tes Acc Damage Taken 14216 | . 176 301 52 524 2240 1763 421 1189 349 4878 . 570 1753 Core 3039 | . . 64 7 38 195 185 . 24 49 515 . 357 1605 Absorbed by Shields . | . . . . . . . . . . . . . . Redirected to Core 10 | . . . . . . . . . . 10 . . . Core Remaining (%) 85 | 100 100 . 82 93 72 78 100 97 . 56 . 75 . Volleys Fired 290 | . 13 19 2 23 50 45 19 39 15 64 . 1 . Largest 6 | . 2 4 4 4 4 5 5 5 6 6 . 1 . Hottest 370 | . 60 116 116 125 211 282 224 231 230 370 . 120 . Shots Fired 1118 | . 26 74 8 89 183 142 85 194 88 228 . 1 . Gun 1117 | . 26 74 8 89 183 142 85 194 88 228 . . . Cannon 1 | . . . . . . . . . . . . 1 . Launcher . | . . . . . . . . . . . . . . Special . | . . . . . . . . . . . . . . Kinetic 698 | . 13 55 6 69 102 59 64 146 75 109 . . . Thermal 304 | . 13 19 2 20 64 39 7 13 13 113 . 1 . Explosive . | . . . . . . . . . . . . . . Electromagnetic 116 | . . . . . 17 44 14 35 . 6 . . . Robot Hit Streak 30 | . 6 8 2 12 12 9 21 20 30 17 . . . Robot Miss Streak 6 | . 3 4 1 2 6 3 3 3 1 4 . . . Penetration Max 1 | . . . . . . . 1 1 . 1 . . . Secondary Targets 19 | . 1 . 1 . 5 2 1 1 . 8 . . . Max Gunslinging Chain 2 | . 1 . 1 . 1 2 1 1 . 1 . . . Shots Hit Robots 779 | . 15 37 3 65 135 114 59 128 66 157 . . . Core Hits 337 | . 7 21 3 28 80 41 21 48 25 60 . 1 2 Critical Hits 20 | . . . . 1 . 4 1 4 2 8 . . . Critical Kills 8 | . . . . . . 2 . 2 1 3 . . . Critical Parts Destroyed 11 | . . . . 1 . 1 1 2 1 5 . . . Melee Attacks 33 | . . . . . . 33 . . . . . . . Impact . | . . . . . . . . . . . . . . Slashing 33 | . . . . . . 33 . . . . . . . Piercing . | . . . . . . . . . . . . . . Sneak Attacks . | . . . . . . . . . . . . . . Combat Hostiles . | . . . . . . . . . . . . . . Follow-up Attacks 2 | . . . . . . 2 . . . . . . . Damage Inflicted 15514 | . 196 621 39 537 2646 2759 1345 2764 1312 3273 . 12 10 Guns 13256 | . 196 621 39 537 1917 1469 1279 2620 1312 3266 . . . Cannons . | . . . . . . . . . . . . . . Explosions 1106 | . . . . . 729 167 66 144 . . . . . Melee 1123 | . . . . . . 1123 . . . . . . . Ramming 29 | . . . . . . . . . . 7 . 12 10 Kinetic 7355 | . 119 391 25 332 834 400 812 1690 1025 1727 . . . Thermal 4927 | . 77 230 14 205 1521 697 232 265 287 1399 . . . Explosive 144 | . . . . . . . . 144 . . . . . Electromagnetic 1936 | . . . . . 291 539 301 665 . 140 . . . Impact . | . . . . . . . . . . . . . . Slashing 1123 | . . . . . . 1123 . . . . . . . Piercing . | . . . . . . . . . . . . . . Highest Corruption 44 | . . . . . 2 3 . 3 . 44 . 2 2 Average Corruption 3 | . . . . . 1 2 . 3 . 7 . 2 2 Corruption Purged . | . . . . . . . . . . . . . . Effects 70 | . . . . . 5 25 . 4 . 35 . 1 . Message Errors 12 | . . . . . 1 3 . 1 . 7 . . . Matter Fused 6 | . . . . . . 4 . . . 2 . . . Heat Flow Errors 8 | . . . . . 1 3 . 1 . 3 . . . Energy Discharges 12 | . . . . . 2 4 . 1 . 4 . 1 . Parts Rejected 2 | . . . . . . . . . . 2 . . . Data Loss (minor) 5 | . . . . . . 3 . . . 2 . . . Data Loss (major) 2 | . . . . . . . . . . 2 . . . Misdirections 5 | . . . . . . . . . . 5 . . . Targeting Errors 15 | . . . . . 1 6 . 1 . 7 . . . Weapon Failures 3 | . . . . . . 2 . . . 1 . . . Overload Shots . | . . . . . . . . . . . . . . Overflow Damage 509 | . . . . . 403 106 . . . . . . . Projectiles . | . . . . . . . . . . . . . . Explosions 419 | . . . . . 403 16 . . . . . . . Melee 90 | . . . . . . 90 . . . . . . . Knockbacks . | . . . . . . . . . . . . . . Impact . | . . . . . . . . . . . . . . Kinetic . | . . . . . . . . . . . . . . Secondary . | . . . . . . . . . . . . . . Self-Inflicted Damage 366 | . . . . . 355 . . . . . . 6 5 Shots 6 | . . . . . 6 . . . . . . . . Rammed 6 | . . . . . . . . . . 2 . 1 3 Targets Rammed 6 | . . . . . . . . . . 2 . 1 3 Kicked . | . . . . . . . . . . . . . . Crushed . | . . . . . . . . . . . . . . Highest Temperature 366 | . 54 146 45 118 366 219 15 128 45 105 . 52 . Average Temperature 51 | . 24 53 22 47 80 72 5 20 13 27 . 33 . Received Heat Transfer 1842 | . 99 108 . 243 459 207 72 111 84 288 . 18 153 Siege Activations . | . . . . . . . . . . . . . . Robots Corrupted 3 | . . . . . . 1 . 1 . 1 . . . Combat Hostiles 2 | . . . . . . . . 1 . 1 . . . Parts Fried 10 | . . . . . . 4 1 3 . 2 . . . Impact Corruptions . | . . . . . . . . . . . . . . Robots Melted . | . . . . . . . . . . . . . . Combat Hostiles . | . . . . . . . . . . . . . . Parts Melted 10 | . . 2 1 . 4 1 . . . 2 . . . Heat Transferred 8362 | . 175 581 37 377 2436 1027 309 407 444 2569 . . . Parts Sabotaged . | . . . . . . . . . . . . . . Parts Stolen . | . . . . . . . . . . . . . . Parts Stripped . | . . . . . . . . . . . . . . Power Chain Reactions 5 | . . . . . 2 2 1 . . . . . . Missiles Intercepted . | . . . . . . . . . . . . . . Alert | -11 -10 -9 -9 -8 -7 -6 -5 -4 -3 -3 -2 -2 -1 ------- Run | Scr Mat Mat Min Mat Fac Fac Fac Fac Res Qua Res Tes Acc Peak Influence 642 | . 70 301 99 205 375 560 369 642 425 392 95 208 314 Initial 248 | . . 29 39 38 93 183 233 119 248 238 65 53 124 Average 218 | . 35 110 52 102 133 349 288 395 309 199 76 99 180 Maximum Alert Level 2 | . . 1 . 1 1 2 1 2 2 1 . 1 1 Low Security (%) 51 | 100 100 72 100 85 72 18 . 31 . 60 100 94 61 Level 1 38 | . . 27 . 14 27 54 99 4 89 39 . 5 38 Level 2 10 | . . . . . . 26 . 64 10 . . . . Level 3 . | . . . . . . . . . . . . . . Level 4 . | . . . . . . . . . . . . . . Level 5 . | . . . . . . . . . . . . . . High Security . | . . . . . . . . . . . . . . Max Security . | . . . . . . . . . . . . . . Squads Dispatched 33 | . . . . 2 9 9 2 4 1 4 . . 2 Investigation 2 | . . . . . . . . . 1 1 . . . Extermination 9 | . . . . . 2 4 1 . . 2 . . . Reinforcement 9 | . . . . . 2 2 1 1 . 1 . . 2 Assault . | . . . . . . . . . . . . . . Garrison 13 | . . . . 2 5 3 . 3 . . . . . Intercept . | . . . . . . . . . . . . . . Construction Impeded . | . . . . . . . . . . . . . . Haulers Reinforced 1 | . . . . . . . . 1 . . . . . Stealth | -11 -10 -9 -9 -8 -7 -6 -5 -4 -3 -3 -2 -2 -1 --------- Run | Scr Mat Mat Min Mat Fac Fac Fac Fac Res Qua Res Tes Acc Distress Signals 9 | . . 3 . . 2 1 . 1 . 2 . . . Communications Jammed . | . . . . . . . . . . . . . . Distress Signals . | . . . . . . . . . . . . . . Times Spotted 201 | . 3 12 4 7 29 35 8 16 8 35 . 16 28 Peak Tracking Total 11 | . 2 4 4 3 7 5 3 5 4 8 . 10 11 Tactical Retreats 17 | . . . . . 2 5 . 1 . 4 . 2 3 Traps | -11 -10 -9 -9 -8 -7 -6 -5 -4 -3 -3 -2 -2 -1 ------- Run | Scr Mat Mat Min Mat Fac Fac Fac Fac Res Qua Res Tes Acc Traps Triggered 6 | . . 1 . 1 . . . 1 1 . . 1 1 Indirectly . | . . . . . . . . . . . . . . Trap Hack Attempts . | . . . . . . . . . . . . . . Triggered . | . . . . . . . . . . . . . . Disarmed . | . . . . . . . . . . . . . . Reprogrammed . | . . . . . . . . . . . . . . Reused . | . . . . . . . . . . . . . . Traps Extracted . | . . . . . . . . . . . . . . Installed . | . . . . . . . . . . . . . . Triggered . | . . . . . . . . . . . . . . Machines | -11 -10 -9 -9 -8 -7 -6 -5 -4 -3 -3 -2 -2 -1 ---------- Run | Scr Mat Mat Min Mat Fac Fac Fac Fac Res Qua Res Tes Acc Machines Disabled 34 | . . . . . 7 8 1 11 . 6 . 1 . Max in Single Turn 10 | . . . . . 5 3 1 10 . 1 . 1 . Machines Sabotaged . | . . . . . . . . . . . . . . Garrisons Compromised . | . . . . . . . . . . . . . . Overloaded Fab Kills . | . . . . . . . . . . . . . . Fab Network Shutdowns . | . . . . . . . . . . . . . . Hacking | -11 -10 -9 -9 -8 -7 -6 -5 -4 -3 -3 -2 -2 -1 --------- Run | Scr Mat Mat Min Mat Fac Fac Fac Fac Res Qua Res Tes Acc Machines Accessed 11 | . . . . 3 1 1 . 1 . 5 . . . Terminals 11 | . . . . 3 1 1 . 1 . 5 . . . Fabricators . | . . . . . . . . . . . . . . Repair Stations . | . . . . . . . . . . . . . . Recycling Units . | . . . . . . . . . . . . . . Scanalyzers . | . . . . . . . . . . . . . . Garrison Access . | . . . . . . . . . . . . . . Total Hacks 16 | . . . . 6 2 1 . 1 . 6 . . . Successful 8 | . . . . 4 1 . . 1 . 2 . . . Failed 8 | . . . . 2 1 1 . . . 4 . . . Catastrophic . | . . . . . . . . . . . . . . Database Lockouts . | . . . . . . . . . . . . . . Manual 12 | . . . . 6 2 1 . 1 . 2 . . . Terminals 16 | . . . . 6 2 1 . 1 . 6 . . . Fabricators . | . . . . . . . . . . . . . . Repair Stations . | . . . . . . . . . . . . . . Recycling Units . | . . . . . . . . . . . . . . Scanalyzers . | . . . . . . . . . . . . . . Garrison Access . | . . . . . . . . . . . . . . Terminal Hacks 4 | . . . . 1 . . . 1 . 2 . . . Record 1 | . . . . . . . . . . 1 . . . Open Door 1 | . . . . . . . . . . 1 . . . Alert Level 2 | . . . . 1 . . . 1 . . . . . Fabricator Hacks . | . . . . . . . . . . . . . . Repair Station Hacks . | . . . . . . . . . . . . . . Recycling Unit Hacks . | . . . . . . . . . . . . . . Scanalyzer . | . . . . . . . . . . . . . . Garrison Access Hacks . | . . . . . . . . . . . . . . Unauthorized Hacks 4 | . . . . 3 1 . . . . . . . . Terminals 4 | . . . . 3 1 . . . . . . . . Botnet 4 | . . . . 3 1 . . . . . . . . Fabricators . | . . . . . . . . . . . . . . Repair Stations . | . . . . . . . . . . . . . . Recycling Units . | . . . . . . . . . . . . . . Scanalyzers . | . . . . . . . . . . . . . . Garrison Access . | . . . . . . . . . . . . . . Data Cores Recovered . | . . . . . . . . . . . . . . Used . | . . . . . . . . . . . . . . Hacking Detections 8 | . . . . 2 . 1 . . . 5 . . . Full Trace Events 1 | . . . . . . . . . . 1 . . . Feedback Events . | . . . . . . . . . . . . . . Feedback Blocked . | . . . . . . . . . . . . . . Robot Schematics Acquired . | . . . . . . . . . . . . . . Robots Built . | . . . . . . . . . . . . . . Matter . | . . . . . . . . . . . . . . Time . | . . . . . . . . . . . . . . Total Robot Build Rating . | . . . . . . . . . . . . . . Part Schematics Acquired . | . . . . . . . . . . . . . . Parts Built . | . . . . . . . . . . . . . . Matter . | . . . . . . . . . . . . . . Time . | . . . . . . . . . . . . . . Total Part Build Rating . | . . . . . . . . . . . . . . Parts Repaired . | . . . . . . . . . . . . . . Time . | . . . . . . . . . . . . . . Parts Recycled . | . . . . . . . . . . . . . . Recycled Matter . | . . . . . . . . . . . . . . Retrieved Matter . | . . . . . . . . . . . . . . Retrieved Components . | . . . . . . . . . . . . . . Parts Scanalyzed . | . . . . . . . . . . . . . . Part Schematics Acquired . | . . . . . . . . . . . . . . Parts Damaged . | . . . . . . . . . . . . . . Bothacking | -11 -10 -9 -9 -8 -7 -6 -5 -4 -3 -3 -2 -2 -1 ------------ Run | Scr Mat Mat Min Mat Fac Fac Fac Fac Res Qua Res Tes Acc Used RIF Installer . | . . . . . . . . . . . . . . Robots Hacked . | . . . . . . . . . . . . . . Non-combat . | . . . . . . . . . . . . . . Combat . | . . . . . . . . . . . . . . Robot Hacks Applied . | . . . . . . . . . . . . . . Relay Couplers Released . | . . . . . . . . . . . . . . Robots Rewired . | . . . . . . . . . . . . . . Allies Hacked . | . . . . . . . . . . . . . . Hacks Repelled . | . . . . . . . . . . . . . . Allies | -11 -10 -9 -9 -8 -7 -6 -5 -4 -3 -3 -2 -2 -1 -------- Run | Scr Mat Mat Min Mat Fac Fac Fac Fac Res Qua Res Tes Acc Total Allies . | . . . . . . . . . . . . . . Largest Group . | . . . . . . . . . . . . . . Highest-Rated Group . | . . . . . . . . . . . . . . Highest-Rated Ally . | . . . . . . . . . . . . . . Total Orders . | . . . . . . . . . . . . . . Ally Attacks . | . . . . . . . . . . . . . . Total Damage . | . . . . . . . . . . . . . . Kills . | . . . . . . . . . . . . . . Allies Corrupted . | . . . . . . . . . . . . . . Allies Melted . | . . . . . . . . . . . . . . Intel | -11 -10 -9 -9 -8 -7 -6 -5 -4 -3 -3 -2 -2 -1 ------- Run | Scr Mat Mat Min Mat Fac Fac Fac Fac Res Qua Res Tes Acc Robot Analysis Total . | . . . . . . . . . . . . . . Derelict Logs Recovered . | . . . . . . . . . . . . . . Drone Launches . | . . . . . . . . . . . . . . Drone Recoveries . | . . . . . . . . . . . . . . Exploration | -11 -10 -9 -9 -8 -7 -6 -5 -4 -3 -3 -2 -2 -1 ------------- Run | Scr Mat Mat Min Mat Fac Fac Fac Fac Res Qua Res Tes Acc Turns Passed 7419 | 67 236 404 89 395 1455 1625 512 461 191 1493 23 150 318 Spaces Moved 4234 | 48 113 173 46 155 625 723 260 182 77 794 51 386 601 Core 701 | 19 . . . . 14 . . . . 17 10 41 600 Treads 2987 | 29 113 173 46 155 452 723 260 182 77 777 . . . Legs 36 | . . . . . 36 . . . . . . . . Wheels 123 | . . . . . 123 . . . . . . . . Hover . | . . . . . . . . . . . . . . Flight 387 | . . . . . . . . . . . 41 345 1 Fastest Speed 34 | 50 160 180 180 172 110 165 150 152 152 50 40 34 40 Average Speed 137 | 116 168 180 180 188 184 175 162 152 152 149 41 35 50 Slowest Speed 1000 | 160 180 180 180 200 1000 200 170 152 152 180 50 50 150 Overloaded Moves . | . . . . . . . . . . . . . . Propulsion Burnouts . | . . . . . . . . . . . . . . Robots Hopped 5 | . . . . . . . . . . . . 5 . Cave-ins Triggered . | . . . . . . . . . . . . . . Exploration Rate (%) 20 | 4 26 24 15 14 19 20 8 6 2 76 3 43 28 Regions Visited 13 Branch Regions 3 Pre-discovered Areas . | . . . . . . . . . . . . . . Known Exits Taken 5 | . . . . . 1 1 1 1 1 . . . . Unknown Exits Taken 8 | 1 1 1 1 1 . . . . . 1 1 1 . Scrap Searched . | . . . . . . . . . . . . . . Spaces Dug . | . . . . . . . . . . . . . . Terrain Destroyed 94 | . . . . . 45 7 5 29 4 4 . . . Melee . | . . . . . . . . . . . . . . Projectile 20 | . . . . . . . 1 11 4 4 . . . AOE 74 | . . . . . 45 7 4 18 . . . . . Terrain Rammed . | . . . . . . . . . . . . . . Walls Destroyed . | . . . . . . . . . . . . . . Machines Disabled . | . . . . . . . . . . . . . . Actions | -11 -10 -9 -9 -8 -7 -6 -5 -4 -3 -3 -2 -2 -1 --------- Run | Scr Mat Mat Min Mat Fac Fac Fac Fac Res Qua Res Tes Acc Total 5125 | 59 134 219 48 206 819 935 306 261 111 973 51 391 612 Wait 248 | . . 8 . 8 78 80 . 21 7 46 . . . Move 4211 | 47 112 172 45 154 624 722 259 181 76 793 50 375 601 Hop 5 | . . . . . . . . . . . . 5 . Pick Up 115 | 7 5 14 1 10 25 14 7 6 6 18 . 2 . Fast Attach 17 | 1 . . . 1 1 6 . . . . 1 2 5 Attach 87 | 4 3 6 . 6 22 9 2 6 2 25 . 2 . Detach 5 | . . . . . . 1 . . . 3 . 1 . Swap 35 | . . . . 1 7 10 8 4 1 4 . . . Drop 77 | . 1 . . 3 12 19 11 4 4 18 . 2 3 Fire 290 | . 13 19 2 23 50 45 19 39 15 64 . 1 . Melee 29 | . . . . . . 29 . . . . . . . Ram 4 | . . . . . . . . . . . . 1 3 Kick . | . . . . . . . . . . . . . . Crush 2 | . . . . . . . . . . 2 . . . Escape Stasis . | . . . . . . . . . . . . . . Rewire . | . . . . . . . . . . . . . . Trap . | . . . . . . . . . . . . . . Miscellaneous . | . . . . . . . . . . . . . . Route ------- -11/Scrapyard -10/Materials -9/Materials -9/Mines -8/Materials -7/Factory -6/Factory -5/Factory -4/Factory -3/Research -3/Quarantine -2/Research -2/Testing -1/Access History --------- Turn | Location | Event 12 | -11/Scrapyard | Discovered new exit (range 16) 68 | -11/Scrapyard | Entered Materials 295 | -10/Materials | Discovered new exit (range 7) 304 | -10/Materials | Entered another Materials area 304 | -9/Materials | Evolved 2 slots: Weapon x2 613 | -9/Materials | Build established: Gunner 669 | -9/Materials | Discovered new exit (range 6) 708 | -9/Materials | Entered Mines 786 | -9/Mines | Discovered new exit (range 6) 797 | -9/Mines | Entered Materials 797 | -8/Materials | Evolved 2 slots: Utility x2 917 | -8/Materials | Lost 3 parts (2n1w) 1091 | -8/Materials | Garrison activated, responded to threat 1158 | -8/Materials | Discovered new exit (range 16) 1192 | -8/Materials | Entered Factory 1192 | -7/Factory | Evolved 2 slots: Utility x2 1505 | -7/Factory | Lost 3 parts (1n2w) 1648 | -7/Factory | Build established: Scavenger-Skirmisher 2096 | -7/Factory | Garrison activated, responded to threat 2127 | -7/Factory | Lost 6 parts (2n2u2w) 2229 | -7/Factory | Garrison activated, responded to threat 2377 | -7/Factory | Garrison activated, responded to threat 2447 | -7/Factory | Destroyed 7 combat bots 2452 | -7/Factory | Lost 5 parts (1n4w) 2579 | -7/Factory | Build established: Scavenger-Tank 2586 | -7/Factory | Discovered new exit (range 2) 2601 | -7/Factory | Identified exit to Factory 2647 | -7/Factory | Entered another Factory area 2647 | -6/Factory | Evolved 2 slots: Utility x1, Weapon x1 3038 | -6/Factory | Build established: Mutant 3264 | -6/Factory | Garrison activated, responded to threat 3685 | -6/Factory | Build established: Scavenger-Tank 4012 | -6/Factory | Lost 3 parts (3w) 4251 | -6/Factory | Discovered new exit (range 12) 4270 | -6/Factory | Identified exit to Factory 4272 | -6/Factory | Entered another Factory area 4272 | -5/Factory | Evolved 2 slots: Power x1, Propulsion x1 4693 | -5/Factory | Discovered new exit (range 17) 4779 | -5/Factory | Identified exit to Factory 4784 | -5/Factory | Entered another Factory area 4784 | -4/Factory | Evolved 2 slots: Propulsion x1, Utility x1 5005 | -4/Factory | Garrison activated, responded to threat 5192 | -4/Factory | Discovered new exit (range 17) 5220 | -4/Factory | Identified exit to Research 5245 | -4/Factory | Entered Research 5245 | -3/Research | Evolved 2 slots: Utility x1, Weapon x1 5294 | -3/Research | Discovered new exit (range 17) 5433 | -3/Research | Identified exit to Quarantine 5436 | -3/Research | Entered Quarantine 5537 | -3/Quarantine | Build established: Scavenger-Executioner 5604 | -3/Quarantine | Found Alien Artifact 5633 | -3/Quarantine | Found Alien Artifact 5634 | -3/Quarantine | Identified Subatomic Replicator 5634 | -3/Quarantine | Used Subatomic Replicator to replicate Imp. Weapon Shielding 5743 | -3/Quarantine | Found Alien Artifact 5745 | -3/Quarantine | Identified Terrabomb 5745 | -3/Quarantine | Used Terrabomb 5817 | -3/Quarantine | Found Terrabomb 5868 | -3/Quarantine | Discovered new exit (range 11) 6028 | -3/Quarantine | Found Alien Artifact 6216 | -3/Quarantine | Lost 4 parts (2u2w) 6258 | -3/Quarantine | Found Alien Energy Cannon 6537 | -3/Quarantine | Build established: Scavenger-Mutant 6607 | -3/Quarantine | Met incapacitated Sigix Warrior 6607 | -3/Quarantine | Lockdown squad dispatched 6612 | -3/Quarantine | Identified Core Cannon 6616 | -3/Quarantine | Acquired the access code to the Sigix quarantine chamber 6619 | -3/Quarantine | Unlocked Sigix quarantine chamber 6768 | -3/Quarantine | Spotted Lightning 6768 | -3/Quarantine | Spotted Lightning 6768 | -3/Quarantine | Spotted Lightning 6773 | -3/Quarantine | System corruption reached 10% 6866 | -3/Quarantine | Lost 18 parts (1p3n4u10w) 6883 | -3/Quarantine | System corruption reached 30% 6916 | -3/Quarantine | Identified Stasis Generator 6917 | -3/Quarantine | Identified Phase Redirector 6929 | -3/Quarantine | Entered Research 6929 | -2/Research | Evolved 2 slots: Power x1, Utility x1 6946 | -2/Research | Discovered new exit (range 8) 6952 | -2/Research | Entered Testing 7041 | -2/Testing | Spotted Striker 7046 | -2/Testing | Spotted Striker 7054 | -2/Testing | Spotted Alpha 7 7057 | -2/Testing | Stole the SGEMP Prototype 7098 | -2/Testing | Discovered new exit (range 9) 7102 | -2/Testing | Entered Access 7102 | -1/Access | Evolved 2 slots: Propulsion x2 7106 | -1/Access | Build established: Mutant 7110 | -1/Access | Lost 3 parts (1p2n) 7188 | -1/Access | Spotted B-99 Colossus 7336 | -1/Access | Core integrity fell below 50% 7371 | -1/Access | Found Prototype Hackware 7371 | -1/Access | Identified Exp. System Shield 7414 | -1/Access | Core integrity fell below 20% 7420 | -1/Access | Destroyed by G-73 Enforcer with Phase Gun Last Messages --------------- Slug penetrates Wall. K-01 Serf cleans the Hyperwave Decoder. Acquired Cmb. Linear Gravjet. Dropped Cmb. Linear Gravjet. ALERT: Hostiles spotted, dispatching reinforcements to Terminal A010. Slammed into G-73 Enforcer. Destabilizing: Core damaged (-32). Slammed into G-73 Enforcer. Destabilizing: System corrupted (+2). Acquired Prototype Hackware. Identified Exp. System Shield. O-24 Administrator: "IFF HANDSHAKE FAILED. SECURING TERMINAL." O-24 Administrator uses terminal to summon reinforcements. ALERT: Hostiles spotted, dispatching reinforcements to Terminal A006. O-24 Administrator locks terminal. Slug penetrates Y-72 Warden. Slug penetrates Wall. Penetrated by Slug. Slug penetrates Wall. Penetrated by Slug. Map ----- +----------------------------------------------------+ | ???????????########?????# #?????????????????# | | ??????????????????#######/######????????????# | | ??????????????????# #????????????# | | ??????????????????# #??????? ????# | | ??????????????????# #?????? ???# | | ??????????????????# ! """"" #??????? ???# | | ??????????????????# """"" #???????" ??# | | ??????????????????# """"" #???????"" ?# | | ??????????????????# """"" #???????"" ?# | | ??????????????????# """"" #??????"""" # | | ??????????????????# #??????""" # | | ??????????????????# #???????? + | | ???##############?# #????????????# | | ???# "" #?#* #????????????# | | ???# "" ###########+################# | | ???# """""" # ^ | | ???# """""" # | | ???# "" # | | ???# "" + | | ???# # | | ???# # | | ???# # | | ???# # ########################+# | | ???# # # # | | ???# # # # | | ???#######+###### /@ ]! # ""G | | ?????????# #????# # !!g # " | | ?????????# #????# # g # " | | ########## ###### # gg # | | "" # # g # | | "" # # """"T"""" # | | """" # # """"""""""" # | | """" + ##############+### | | """" # #????????????# #?# = | | """" # #????????????# #?# | | """" ! # #????????????# #?######### | | "" # ###+####????????????# #?????????? | | = # #????????????#??????# #?????????? | | # #????????????# ????# #?????????? | | + #????????????# ??# #?????????? | | # #????????????#!= # #####+#???? | | # #????????????#== + #???? | | # #????????????# # #???? | | # #????????????#####??# ##### | | # #???????????????????# | | ########## #???????????????????# | | # #???????????????????# !! | | # #???????????????????# !! | | """"" # #???????????????????# !! | | """"" # #???????????????????# | +----------------------------------------------------+ Best States ------------- Heat Dissipation 108 Energy Generation 31 Energy Capacity 360 Matter Stores 300 Matter Capacity 300 Sight Range 18 Robot Scan Range 16 Terrain Scan Density 10 Armor Coverage 450 Core Shielding 20 Weapon Shielding 66 Phase Shifting 10 Evasion (%) 63 Recoil Reduction 4 Matter Filtering 30 Defensive Hacking 16 Item Schematics ----------------- None Robot Schematics ------------------ None Fabricated ------------ Nothing Alien Tech Used ----------------- Subatomic Replicator Terrabomb Core Cannon Stasis Generator Phase Redirector Achievements -------------- False Reunion Challenges ------------ None Game ------ Seed GuidedGrenadeChip Manual? 0 Play Time 01:37:06 Cumulative 105.5 hours Start 2021.05.11 @ 19:23:07 End 2021.05.11 @ 21:33:20 Sessions 1 Manual Loads 0 Difficulty Rogue Special Mode None Game No. 179 Rogue 177 Adventurer 2 Explorer 0 Win Type - Total 1 Types 1/0/0/0/0/0/0/0/0 Lore% 52 Gallery% 49 Achievement% 44 Wizard Run 0 Options --------- ASCII 0 Keyboard 0 Movement Mouse Keybinds 0 Fullscreen 1 Font 18/SmallcapsGlow Map View 76x50 Tactical HUD 0 Map Filters NONE Filters NONE Steam 1 RUN: 0b46a095-1cd7-4f20-a2d8-8566133ff4a4